fUST/lending_fUST_20251002
["ID","MTS","AMOUNT","RATE_DAILY","PERIOD"]
[388803657,1759369831974,-347.70376496,0.00022373,2]
[388803658,1759369831984,-157.583474,0.00022455,2]
[388803659,1759369831993,-160.0,0.00022677,3]
[388803660,1759369832002,-160.0,0.00022738,4]
[388803661,1759369832011,-160.0,0.00022799,5]
[388803662,1759369832020,-160.0,0.0002286,6]
[388803663,1759369832029,-160.0,0.0002292,7]
[388803664,1759369832038,-160.0,0.00022981,8]
[388803666,1759369832048,-160.0,0.00023042,9]
[388803668,1759369832057,-165.98138,0.00023069,2]
[388803670,1759369832066,-155.1904181,0.00023075,2]
[388803672,1759369832076,-160.0,0.00023103,10]
[388803674,1759369832084,-160.0,0.00023164,11]
[388803676,1759369832094,-160.0,0.00023224,12]
[388803678,1759369832102,-250.0,0.00023233,2]
[388803680,1759369832111,-250.0,0.00023233,2]
[388803682,1759369832120,-250.0,0.00023233,2]
[388803683,1759369832130,-250.0,0.00023233,2]
[388803684,1759369832139,-261.06745846,0.00023233,2]
[388803685,1759369832149,-160.0,0.00023285,13]
[388803686,1759369832158,-160.0,0.00023346,14]
[388803687,1759369832168,-160.0,0.0002338,2]
[388803688,1759369832177,-160.0,0.00023407,15]
[388803689,1759369832186,-160.0,0.00023468,16]
[388803690,1759369832195,-160.0,0.00023529,17]
[388803691,1759369832205,-160.0,0.00023589,18]
[388803692,1759369832214,-574.25974559,0.00023592,2]
[388803693,1759369832223,-157.583474,0.00023627,7]
[388803694,1759369832233,-160.0,0.0002365,19]
[388803695,1759369832243,-160.0,0.00023711,20]
[388803696,1759369832252,-464.72916795,0.00023738,2]
[388803697,1759369832262,-160.0,0.00023772,21]
[388803698,1759369832271,-361.0,0.00023785,2]
[388803699,1759369832280,-500.0,0.00023808,2]
[388803700,1759369832291,-361.0,0.00023808,2]
[388803701,1759369832305,-160.0,0.00023833,22]
[388803702,1759369832317,-160.0,0.00023894,23]
[388803703,1759369832327,-215.8400179,0.00023894,5]
[388803704,1759369832337,-157.583474,0.00023902,10]
[388803705,1759369832346,-260.0,0.00023928,2]
[388803706,1759369832355,-417.2019374,0.00023977,2]
[388803707,1759369832366,-420.0,0.00023983,2]
[388803708,1759369832376,-174.69977533,0.0002399,2]
[388803709,1759369832385,-361.0,0.00024,2]
[388803710,1759369832396,-361.0,0.00024003,2]
[388803711,1759369832405,-157.583474,0.0002401,27]
[388803712,1759369832414,-361.0,0.00024013,2]
[388803713,1759369832423,-162.0,0.000241,7]
[388803714,1759369832432,-164.15146494,0.000241,15]
[388803715,1759369832441,-340.0,0.00024178,2]
[388803716,1759369832450,-168.0,0.00024287,2]
[388803717,1759369832459,-2964.59,0.0002429,10]
[388803718,1759369832468,-2470.49,0.0002429,10]
[388803719,1759369832477,-432.14331649,0.00024296,2]
[388803720,1759369832486,-1728.57326595,0.00024296,2]
[388803721,1759369832495,-3885.40055854,0.00024296,2]
[388803722,1759369832504,-637.25191507,0.00024296,2]
[388803723,1759369832513,-2549.00766028,0.00024296,2]
[388803724,1759369832522,-5729.53196839,0.00024296,2]
[388803725,1759369832532,-281557.93185006,0.000243,2]
[388803726,1759369832554,-23940.56709873,0.000243,2]
[388803727,1759369832563,-152.302728,0.000243,7]
[388803728,1759369832573,-1999.8464694,0.00024317,2]
[388803729,1759369832583,-1287.04596335,0.00024319,2]
[388803730,1759369832592,-7226.15206902,0.00024371,2]
[388803731,1759369832602,-500.0,0.00024373,2]
[388803732,1759369832611,-375.19,0.0002439,3]
[388803733,1759369832620,-187.59,0.0002439,3]
[388803734,1759369832630,-562.81,0.0002439,3]
[388803735,1759369832639,-3557.5,0.0002439,10]
[388803736,1759369832648,-61332.2324219,0.000244,2]
[388803770,1759369839758,-239.600387,0.000243,7]
[388803771,1759369839767,-27.399613,0.000243,7]
[388803816,1759369845773,-123.600387,0.000243,7]
[388803817,1759369845783,-161.23291,0.000243,7]
[388803818,1759369845793,-239.600387,0.000243,7]
[388803819,1759369845802,-151.0,0.000243,7]
[388803820,1759369845811,-239.600387,0.000243,7]
[388803821,1759369845820,-239.600387,0.000243,7]
[388803822,1759369845828,-257.753464,0.000243,7]
[388803823,1759369845837,-425.37611281,0.000244,2]
[388803824,1759369845848,-464.00039151,0.000244,2]
[388803829,1759369899707,503.40957751,0.00033403,60]
[388803832,1759369922585,505.59310066,0.00033403,60]
[388803849,1759370503446,509.99282969,0.00033394,60]
[388803850,1759370521445,508.7068633,0.00033394,60]
[388803852,1759370548451,505.57451275,0.00033394,60]
[388803853,1759370595751,2028.0,0.00033394,60]
[388803868,1759370845128,-500.0,0.00019178,2]
[388803869,1759370845146,-659.89692995,0.00019178,2]
[388803871,1759370907862,160.5672609,0.00018878,2]
[388803873,1759370984152,331.6895366,0.00033394,120]
[388803917,1759371032135,-1107.84691613,0.00019178,2]
[388803919,1759371032145,-156.0,0.00021299,2]
[388803921,1759371032154,-300.0,0.00021299,2]
[388803923,1759371032163,-300.0,0.00021299,2]
[388803925,1759371032172,-546.0,0.00021299,2]
[388803927,1759371032181,-12088.10219093,0.000213,2]
[388803929,1759371032192,-40.46160332,0.000213,2]
[388803931,1759371032201,-192.53928,0.000214,2]
[388803933,1759371032210,-164.0,0.00021562,5]
[388803935,1759371032220,-410.0,0.0002185,2]
[388803938,1759371032229,-429.668,0.0002185,2]
[388803940,1759371032238,-502.47727741,0.00022243,2]
[388803942,1759371032247,-50000.0,0.00022343,2]
[388803944,1759371032256,-979.0,0.00022343,2]
[388803947,1759371032266,-2157.0,0.00022343,2]
[388803950,1759371032275,-630.0,0.00022343,2]
[388803952,1759371032284,-420.0,0.00023162,2]
[388803954,1759371032293,-293.36416222,0.00023314,2]
[388803956,1759371032302,-233.9640895,0.00023314,2]
[388803958,1759371032311,-160.0,0.00023314,2]
[388803960,1759371032320,-160.0,0.00023413,2]
[388803962,1759371032329,-160.0,0.00023413,2]
[388803964,1759371032338,-485.70672749,0.00023738,2]
[388803966,1759371032347,-702.33063497,0.000238,2]
[388803968,1759371032357,-1011.0,0.000238,3]
[388803970,1759371032366,-1012.15,0.000238,4]
[388803972,1759371032375,-502.47727739,0.00023822,2]
[388803974,1759371032384,-250.0,0.00023917,2]
[388803976,1759371032393,-500.0,0.00023986,2]
[388803979,1759371032403,-500.0,0.00023986,2]
[388803981,1759371032412,-187.59,0.0002399,3]
[388803983,1759371032421,-255.08,0.0002399,3]
[388803985,1759371032430,-765.25,0.0002399,3]
[388803986,1759371032438,-2058.74,0.0002399,10]
[388803987,1759371032447,-1715.62,0.0002399,10]
[388803988,1759371032456,-1429.68,0.0002399,10]
[388803989,1759371032465,-31851.96793617,0.00024,2]
[388803990,1759371032476,-326.50627759,0.00024,2]
[388803992,1759371032486,-400.0,0.00024,2]
[388804007,1759371037945,-1767.74384608,0.00024,2]
[388804047,1759371175549,202.0,0.00026,120]
[388804049,1759371391757,267.32523168,0.00021808,2]
[388804054,1759371662890,201.0,0.00033394,120]
[388804056,1759371747777,181.22,0.00028767,120]
[388804071,1759372048107,-300.0,0.00022331,2]
[388804072,1759372048130,-866.01600826,0.00022333,2]
[388804076,1759372114496,150.37676624,0.00025,120]
[388804078,1759372124791,150.54650703,0.00024,30]
[388804149,1759372238041,-231.46956265,0.00019999,2]
[388804151,1759372238050,-218.84103948,0.00019999,2]
[388804152,1759372238060,-380.70181077,0.00019999,2]
[388804157,1759372238100,-119.29818923,0.00019999,2]
[388804158,1759372238109,-500.0,0.00019999,2]
[388804159,1759372238119,-500.0,0.00019999,2]
[388804161,1759372238128,-500.0,0.00019999,2]
[388804163,1759372238139,-500.0,0.00019999,2]
[388804165,1759372238149,-500.0,0.00019999,2]
[388804167,1759372238159,-500.0,0.00019999,2]
[388804169,1759372238169,-500.0,0.00019999,2]
[388804171,1759372238179,-500.0,0.00019999,2]
[388804173,1759372238188,-500.0,0.00019999,2]
[388804175,1759372238197,-500.0,0.00019999,2]
[388804177,1759372238206,-500.0,0.00019999,2]
[388804179,1759372238215,-500.0,0.00019999,2]
[388804181,1759372238225,-613.75482154,0.00019999,2]
[388804183,1759372238234,-500.0,0.00019999,2]
[388804185,1759372238243,-500.0,0.00019999,2]
[388804187,1759372238252,-500.0,0.00019999,2]
[388804189,1759372238262,-500.0,0.00019999,2]
[388804191,1759372238271,-500.0,0.00019999,2]
[388804193,1759372238280,-178.28350844,0.00019999,2]
[388804194,1759372238289,-500.0,0.00019999,2]
[388804195,1759372238298,-500.0,0.00019999,2]
[388804196,1759372238308,-500.0,0.00019999,2]
[388804197,1759372238317,-359.05850318,0.00019999,2]
[388804198,1759372238326,-500.0,0.00019999,2]
[388804199,1759372238336,-500.0,0.00019999,2]
[388804200,1759372238345,-500.0,0.00019999,2]
[388804201,1759372238354,-500.0,0.00019999,2]
[388804202,1759372238363,-152.4043017,0.00019999,2]
[388804208,1759372240065,-347.5956983,0.00019999,2]
[388804209,1759372240074,-500.0,0.00019999,2]
[388804211,1759372240083,-500.0,0.00019999,2]
[388804213,1759372240097,-152.4043017,0.00019999,2]
[388804235,1759372244357,596.84,0.00033397,60]
[388804255,1759372246495,-500.00548454,0.00019999,2]
[388804256,1759372246505,-347.5956983,0.00019999,2]
[388804257,1759372246514,-500.0,0.00019999,2]
[388804258,1759372246524,-500.0,0.00019999,2]
[388804259,1759372246534,-500.0,0.00019999,2]
[388804260,1759372246544,-331.60915417,0.00019999,2]
[388804261,1759372246554,-500.0,0.00019999,2]
[388804262,1759372246563,-500.0,0.00019999,2]
[388804263,1759372246572,-500.0,0.00019999,2]
[388804264,1759372246581,-500.0,0.00019999,2]
[388804266,1759372246591,-500.0,0.00019999,2]
[388804268,1759372246600,-500.0,0.00019999,2]
[388804270,1759372246609,-500.0,0.00019999,2]
[388804272,1759372246618,-371.6898969,0.00019999,2]
[388804273,1759372246628,-500.0,0.00019999,2]
[388804275,1759372246636,-500.0,0.00019999,2]
[388804277,1759372246645,-500.0,0.00019999,2]
[388804279,1759372246655,-500.0,0.00019999,2]
[388804281,1759372246665,-3758.16982893,0.0002,20]
[388804283,1759372246674,-300.0,0.00022331,2]
[388804285,1759372246683,-5.04059926,0.00022333,2]
[388804286,1759372246725,500.0,0.00033397,60]
[388804287,1759372246739,-2151.95940074,0.00022333,2]
[388804288,1759372246749,-630.0,0.00022333,2]
[388804289,1759372246758,-376.85795806,0.0002273,2]
[388804290,1759372246768,-271.75234242,0.00022829,2]
[388804291,1759372246777,-3203.80240951,0.0002283,2]
[388804292,1759372246793,-6639.59896706,0.0002283,2]
[388804293,1759372246829,309.2846829,0.00033397,60]
[388804294,1759372249988,500.0,0.00033397,60]
[388804295,1759372250379,161.92515954,0.00033397,60]
[388804296,1759372251324,500.0,0.00033397,60]
[388804297,1759372251563,500.0,0.00033397,60]
[388804298,1759372251788,500.0,0.00033397,60]
[388804299,1759372252045,500.0,0.00033397,60]
[388804300,1759372252266,619.8641776,0.00033397,60]
[388804301,1759372255494,500.0,0.00033397,60]
[388804302,1759372255719,524.07103183,0.00033397,60]
[388804303,1759372257001,500.0,0.00033397,60]
[388804304,1759372257239,530.20635563,0.00033397,60]
[388804305,1759372259053,500.0,0.00033397,60]
[388804306,1759372259302,530.08802693,0.00033397,60]
[388804307,1759372262810,500.0,0.00033397,60]
[388804308,1759372263052,500.0,0.00033397,60]
[388804309,1759372263284,500.0,0.00033397,60]
[388804310,1759372263521,500.0,0.00033397,60]
[388804311,1759372263762,500.0,0.00033397,60]
[388804312,1759372263989,500.0,0.00033397,60]
[388804313,1759372264210,500.0,0.00033397,60]
[388804314,1759372264439,500.0,0.00033397,60]
[388804315,1759372264674,500.0,0.00033397,60]
[388804316,1759372264995,178.53590723,0.00033397,60]
[388804317,1759372268585,500.0,0.00033397,60]
[388804318,1759372268863,519.11731114,0.00033397,60]
[388804319,1759372276137,500.0,0.00033397,60]
[388804320,1759372276369,500.0,0.00033397,60]
[388804321,1759372276971,213.21937608,0.00033397,60]
[388804322,1759372281150,500.0,0.00033397,60]
[388804323,1759372281393,500.0,0.00033397,60]
[388804324,1759372281626,500.0,0.00033397,60]
[388804325,1759372281657,593.80888533,0.00033397,60]
[388804326,1759372281871,500.0,0.00033397,60]
[388804327,1759372287924,500.0,0.00033397,60]
[388804328,1759372288183,500.0,0.00033397,60]
[388804329,1759372288408,528.50298271,0.00033397,60]
[388804330,1759372291803,500.0,0.00033397,60]
[388804331,1759372291935,500.0,0.00033397,60]
[388804332,1759372292038,639.93849375,0.00033397,60]
[388804333,1759372292177,402.29344168,0.00033397,60]
[388804334,1759372293978,500.0,0.00033397,60]
[388804335,1759372294213,500.0,0.00033397,60]
[388804336,1759372294477,500.0,0.00033397,60]
[388804337,1759372294730,500.0,0.00033397,60]
[388804338,1759372295005,500.0,0.00033397,60]
[388804339,1759372295249,500.0,0.00033397,60]
[388804340,1759372295637,500.0,0.00033397,60]
[388804341,1759372295873,500.0,0.00033397,60]
[388804342,1759372296117,500.0,0.00033397,60]
[388804343,1759372296376,500.0,0.00033397,60]
[388804344,1759372296646,500.0,0.00033397,60]
[388804345,1759372296919,500.0,0.00033397,60]
[388804346,1759372297223,500.0,0.00033397,60]
[388804347,1759372297388,500.0,0.00033397,60]
[388804348,1759372297624,500.0,0.00033397,60]
[388804349,1759372297872,500.55912947,0.00033397,60]
[388804350,1759372298224,500.0,0.00033397,60]
[388804351,1759372298464,172.8,0.00033397,60]
[388804352,1759372299655,500.0,0.00033397,60]
[388804353,1759372299901,500.0,0.00033397,60]
[388804354,1759372300135,467.12783369,0.00033397,60]
[388804355,1759372301649,500.0,0.00033397,60]
[388804356,1759372301903,510.13641304,0.00033397,60]
[388804357,1759372302419,500.0,0.00033397,60]
[388804358,1759372302696,500.0,0.00033397,60]
[388804359,1759372302942,491.90404271,0.00033397,60]
[388804360,1759372303982,201.60779779,0.00033397,60]
[388804361,1759372304778,500.0,0.00033397,60]
[388804362,1759372305053,500.0,0.00033397,60]
[388804363,1759372305296,521.23839394,0.00033397,60]
[388804364,1759372313328,500.0,0.00033397,60]
[388804365,1759372313397,500.0,0.00033397,60]
[388804366,1759372313556,274.54,0.00033397,60]
[388804367,1759372313626,178.69093922,0.00033397,60]
[388804368,1759372316134,500.0,0.00033397,60]
[388804369,1759372316362,500.0,0.00033397,60]
[388804370,1759372316602,500.0,0.00033397,60]
[388804371,1759372316860,508.59144524,0.00033397,60]
[388804372,1759372319473,307.33,0.00033397,60]
[388804373,1759372319851,500.0,0.00033397,60]
[388804374,1759372320095,506.36678383,0.00033397,60]
[388804376,1759372323463,500.0,0.00033397,60]
[388804377,1759372323549,500.0,0.00033397,60]
[388804378,1759372323703,500.0,0.00033397,60]
[388804379,1759372323815,546.50431325,0.00033397,60]
[388804380,1759372323981,500.0,0.00033397,60]
[388804381,1759372324211,534.13037011,0.00033397,60]
[388804382,1759372325770,444.83750452,0.00033397,60]
[388804383,1759372329915,500.0,0.00033397,60]
[388804384,1759372330161,500.0,0.00033397,60]
[388804385,1759372330614,500.0,0.00033397,60]
[388804386,1759372330870,500.0,0.00033397,60]
[388804387,1759372331147,500.0,0.00033397,60]
[388804388,1759372331387,500.0,0.00033397,60]
[388804389,1759372331647,500.0,0.00033397,60]
[388804390,1759372331928,500.0,0.00033397,60]
[388804391,1759372332499,200.91513018,0.00033397,60]
[388804392,1759372334454,500.0,0.00033397,60]
[388804393,1759372334784,500.0,0.00033397,60]
[388804394,1759372334990,515.40851374,0.00033397,60]
[388804395,1759372335872,500.0,0.00033397,60]
[388804396,1759372336108,500.0,0.00033397,60]
[388804397,1759372336375,500.0,0.00033397,60]
[388804398,1759372336603,543.27966512,0.00033397,60]
[388804399,1759372336918,578.23,0.00033397,60]
[388804400,1759372338197,500.0,0.00033397,60]
[388804401,1759372338472,500.0,0.00033397,60]
[388804402,1759372338512,500.0,0.00033397,60]
[388804403,1759372338732,500.0,0.00033397,60]
[388804404,1759372338845,500.0,0.00033397,60]
[388804405,1759372338993,500.0,0.00033397,60]
[388804406,1759372339088,500.0,0.00033397,60]
[388804407,1759372339229,500.0,0.00033397,60]
[388804408,1759372339332,524.4211529,0.00033397,60]
[388804409,1759372339874,500.0,0.00033397,60]
[388804410,1759372340125,500.0,0.00033397,60]
[388804411,1759372340372,500.0,0.00033397,60]
[388804412,1759372340630,500.0,0.00033397,60]
[388804413,1759372341003,500.0,0.00033397,60]
[388804414,1759372341241,500.0,0.00033397,60]
[388804415,1759372341483,532.43858244,0.00033397,60]
[388804416,1759372342854,500.0,0.00033397,60]
[388804417,1759372343119,552.37056914,0.00033397,60]
[388804418,1759372343412,500.0,0.00033397,60]
[388804419,1759372343648,500.0,0.00033397,60]
[388804420,1759372343872,500.0,0.00033397,60]
[388804421,1759372344143,500.0,0.00033397,60]
[388804422,1759372344369,500.0,0.00033397,60]
[388804423,1759372344603,500.0,0.00033397,60]
[388804424,1759372344871,500.0,0.00033397,60]
[388804425,1759372345098,500.0,0.00033397,60]
[388804426,1759372345326,500.0,0.00033397,60]
[388804427,1759372345552,500.0,0.00033397,60]
[388804428,1759372345790,500.0,0.00033397,60]
[388804429,1759372346033,585.92775206,0.00033397,60]
[388804430,1759372346099,500.0,0.00033397,60]
[388804431,1759372346328,500.0,0.00033397,60]
[388804432,1759372346549,500.0,0.00033397,60]
[388804433,1759372346873,500.0,0.00033397,60]
[388804434,1759372347106,500.0,0.00033397,60]
[388804435,1759372347201,500.0,0.00033397,60]
[388804436,1759372347326,500.0,0.00033397,60]
[388804437,1759372347434,513.6573583,0.00033397,60]
[388804438,1759372347576,500.0,0.00033397,60]
[388804439,1759372347817,500.0,0.00033397,60]
[388804440,1759372348067,500.0,0.00033397,60]
[388804441,1759372348299,500.0,0.00033397,60]
[388804442,1759372348722,500.0,0.00033397,60]
[388804443,1759372348795,339.07413029,0.00033397,60]
[388804444,1759372349196,487.57114036,0.00033397,60]
[388804445,1759372349778,500.0,0.00033397,60]
[388804446,1759372350000,500.0,0.00033397,60]
[388804447,1759372350244,506.9779655,0.00033397,60]
[388804448,1759372351435,491.88817786,0.00033397,60]
[388804449,1759372352313,500.0,0.00033397,60]
[388804450,1759372352461,504.62075908,0.00033397,60]
[388804451,1759372352559,500.0,0.00033397,60]
[388804452,1759372352820,568.95104979,0.00033397,60]
[388804453,1759372354923,500.0,0.00033397,60]
[388804455,1759372355173,516.1915371,0.00033397,60]
[388804456,1759372355601,314.47607133,0.00033397,60]
[388804457,1759372365107,500.0,0.00033396,60]
[388804458,1759372365356,500.0,0.00033396,60]
[388804459,1759372365596,452.62440169,0.00033396,60]
[388804460,1759372370736,500.0,0.00033396,60]
[388804461,1759372370988,500.0,0.00033396,60]
[388804462,1759372371250,500.0,0.00033396,60]
[388804463,1759372371492,643.58038781,0.00033396,60]
[388804464,1759372372918,500.0,0.00033396,60]
[388804465,1759372373015,459.56625559,0.00033396,60]
[388804466,1759372373183,500.0,0.00033396,60]
[388804467,1759372373431,483.71879465,0.00033396,60]
[388804468,1759372374363,500.0,0.00033396,60]
[388804469,1759372374604,500.0,0.00033396,60]
[388804470,1759372374856,523.47800383,0.00033396,60]
[388804471,1759372375674,500.0,0.00033396,60]
[388804472,1759372375922,500.0,0.00033396,60]
[388804473,1759372376192,333.8799208,0.00033396,60]
[388804474,1759372378492,500.0,0.00033396,60]
[388804475,1759372378713,500.0,0.00033396,60]
[388804476,1759372378747,508.20060186,0.00033396,60]
[388804477,1759372378944,508.24214003,0.00033396,60]
[388804478,1759372381414,500.0,0.00033396,60]
[388804479,1759372381644,500.0,0.00033396,60]
[388804480,1759372381876,471.4876054,0.00033396,60]
[388804481,1759372390051,500.0,0.00033396,60]
[388804482,1759372390260,500.0,0.00033396,60]
[388804483,1759372390312,512.54374414,0.00033396,60]
[388804484,1759372390512,351.57624434,0.00033396,60]
[388804485,1759372392431,500.0,0.00033396,60]
[388804486,1759372392465,500.0,0.00033396,60]
[388804487,1759372392521,500.0,0.00033396,60]
[388804488,1759372392642,495.55933972,0.00033396,60]
[388804489,1759372392775,500.0,0.00033396,60]
[388804490,1759372393082,350.49546102,0.00033396,60]
[388804491,1759372395877,500.0,0.00033396,60]
[388804492,1759372396135,500.0,0.00033396,60]
[388804493,1759372396399,500.0,0.00033396,60]
[388804494,1759372396655,500.0,0.00033396,60]
[388804495,1759372396888,500.0,0.00033396,60]
[388804496,1759372397141,500.0,0.00033396,60]
[388804497,1759372397374,500.0,0.00033396,60]
[388804498,1759372397755,500.0,0.00033396,60]
[388804499,1759372397986,500.0,0.00033396,60]
[388804500,1759372398237,500.0,0.00033396,60]
[388804501,1759372398478,500.0,0.00033396,60]
[388804502,1759372398710,521.41725426,0.00033396,60]
[388804503,1759372405368,500.0,0.00033396,60]
[388804504,1759372405635,544.92905896,0.00033396,60]
[388804505,1759372406486,500.0,0.00033396,60]
[388804506,1759372406736,500.0,0.00033396,60]
[388804507,1759372406977,500.0,0.00033396,60]
[388804508,1759372407240,500.0,0.00033396,60]
[388804509,1759372407494,500.0,0.00033396,60]
[388804510,1759372407740,500.0,0.00033396,60]
[388804511,1759372407985,500.0,0.00033396,60]
[388804512,1759372408238,500.0,0.00033396,60]
[388804513,1759372408482,500.0,0.00033396,60]
[388804514,1759372408684,500.0,0.00033396,60]
[388804515,1759372408739,500.0,0.00033396,60]
[388804516,1759372408966,500.0,0.00033396,60]
[388804517,1759372408994,-3430.85880594,0.00019178,2]
[388804518,1759372409025,500.0,0.00033396,60]
[388804519,1759372409208,500.0,0.00033396,60]
[388804520,1759372409277,500.0,0.00033396,60]
[388804521,1759372409568,169.1,0.00033396,60]
[388804522,1759372413698,506.71944828,0.00033396,60]
[388804523,1759372413942,500.0,0.00033396,60]
[388804524,1759372414197,500.0,0.00033396,60]
[388804525,1759372414432,484.93690949,0.00033396,60]
[388804526,1759372423037,615.89902529,0.00033396,60]
[388804527,1759372434781,507.62131029,0.00033396,60]
[388804528,1759372434997,500.0,0.00033396,60]
[388804529,1759372435112,500.0,0.00033396,60]
[388804530,1759372435228,528.87012258,0.00033396,60]
[388804531,1759372435346,500.0,0.00033396,60]
[388804532,1759372435602,513.37940204,0.00033396,60]
[388804533,1759372437658,500.0,0.00033396,60]
[388804534,1759372437887,502.80262291,0.00033396,60]
[388804535,1759372441133,500.0,0.00033396,60]
[388804536,1759372441387,540.00828083,0.00033396,60]
[388804537,1759372444476,500.0,0.00033396,60]
[388804538,1759372444752,500.0,0.00033396,60]
[388804539,1759372445101,500.0,0.00033396,60]
[388804540,1759372445355,500.0,0.00033396,60]
[388804541,1759372445387,500.0,0.00033396,60]
[388804542,1759372445648,418.90961423,0.00033396,60]
[388804543,1759372445870,500.0,0.00033396,60]
[388804544,1759372446120,500.0,0.00033396,60]
[388804545,1759372446399,500.0,0.00033396,60]
[388804546,1759372446574,500.0,0.00033396,60]
[388804547,1759372446654,500.0,0.00033396,60]
[388804548,1759372446736,500.0,0.00033396,60]
[388804549,1759372446830,512.27208134,0.00033396,60]
[388804550,1759372446943,500.0,0.00033396,60]
[388804551,1759372446978,517.76107749,0.00033396,60]
[388804552,1759372447246,500.0,0.00033396,60]
[388804553,1759372447528,500.0,0.00033396,60]
[388804554,1759372447762,500.0,0.00033396,60]
[388804555,1759372447947,500.0,0.00033396,60]
[388804556,1759372448043,540.73494326,0.00033396,60]
[388804557,1759372448234,500.0,0.00033396,60]
[388804558,1759372448476,544.17810315,0.00033396,60]
[388804559,1759372451275,460.80820418,0.00033396,60]
[388804560,1759372453767,527.66,0.00033396,60]
[388804561,1759372454010,527.66,0.00033396,60]
[388804562,1759372454281,527.66,0.00033396,60]
[388804563,1759372454549,527.66,0.00033396,60]
[388804564,1759372454851,527.66,0.00033396,60]
[388804565,1759372455124,527.66,0.00033396,60]
[388804566,1759372455407,527.66,0.00033396,60]
[388804567,1759372455644,527.66,0.00033396,60]
[388804568,1759372455904,527.66,0.00033396,60]
[388804569,1759372456148,527.66,0.00033396,60]
[388804570,1759372456180,500.0,0.00033396,60]
[388804571,1759372456410,527.66,0.00033396,60]
[388804572,1759372456471,533.4936777,0.00033396,60]
[388804573,1759372456661,527.66,0.00033396,60]
[388804574,1759372456923,527.66,0.00033396,60]
[388804575,1759372457152,527.66,0.00033396,60]
[388804576,1759372457403,527.66,0.00033396,60]
[388804577,1759372457631,527.66,0.00033396,60]
[388804578,1759372457875,527.66,0.00033396,60]
[388804579,1759372458134,527.66,0.00033396,60]
[388804580,1759372458294,500.0,0.00033396,60]
[388804581,1759372458375,527.66,0.00033396,60]
[388804582,1759372458525,488.30445038,0.00033396,60]
[388804583,1759372458645,527.66,0.00033396,60]
[388804584,1759372458905,527.66,0.00033396,60]
[388804585,1759372458945,940.8,0.00033396,60]
[388804586,1759372459134,527.66,0.00033396,60]
[388804587,1759372459202,940.8,0.00033396,60]
[388804588,1759372459411,527.66,0.00033396,60]
[388804589,1759372459474,940.8,0.00033396,60]